lending/lending_fUSD_20240710
["ID","MTS","AMOUNT","RATE_DAILY","PERIOD"]
[331632972,1720594259848,-1285.02,0.00013753,2]
[331632973,1720594259869,-500.0,0.00013753,2]
[331632974,1720594259878,-500.0,0.00013753,2]
[331632975,1720594259887,-792.23,0.00013753,2]
[331632976,1720594259897,-500.0,0.00013753,2]
[331632977,1720594259906,-500.0,0.00013753,2]
[331632978,1720594259920,-500.0,0.00013753,2]
[331632979,1720594259931,-558.29,0.00013753,2]
[331632980,1720594259942,-500.0,0.00013753,2]
[331632981,1720594259953,-1556.18,0.00013753,2]
[331632982,1720594259965,-1243.97,0.00013753,2]
[331632983,1720594259975,-1023.74,0.00013753,2]
[331632984,1720594259984,-11867.55,0.00013753,2]
[331632985,1720594259994,-714.37,0.00013753,2]
[331632986,1720594260004,-1303.87,0.00013753,2]
[331632987,1720594260013,-1162.27,0.00013753,2]
[331632988,1720594260023,-500.0,0.00013753,2]
[331632989,1720594260033,-4087.28,0.00013753,2]
[331632990,1720594260043,-500.0,0.00013753,2]
[331632991,1720594260052,-500.0,0.00013753,2]
[331632992,1720594260061,-993.61,0.00013753,2]
[331632993,1720594260071,-500.0,0.00013753,2]
[331632994,1720594260081,-771.66,0.00013753,2]
[331632995,1720594260090,-684.56,0.00013753,2]
[331632996,1720594260100,-500.0,0.00013753,2]
[331632997,1720594260110,-500.0,0.00013753,2]
[331632998,1720594260120,-1577.48,0.00013753,2]
[331632999,1720594260130,-529.8,0.00013753,2]
[331633000,1720594260139,-1457.47,0.00013753,2]
[331633001,1720594260150,-1997.56,0.00013753,2]
[331633002,1720594260161,-500.0,0.00013753,2]
[331633003,1720594260170,-506.3,0.00013753,2]
[331633004,1720594260182,-1760.32,0.00013753,2]
[331633005,1720594260191,-2555.88,0.00013753,2]
[331633006,1720594260203,-3098.43,0.00013753,2]
[331633007,1720594260213,-514.64,0.00013753,2]
[331633008,1720594260222,-500.0,0.00013753,2]
[331633009,1720594260231,-500.0,0.00013753,2]
[331633010,1720594260240,-500.0,0.00013753,2]
[331633011,1720594260250,-500.0,0.00013753,2]
[331633012,1720594260260,-1085.66,0.00013753,2]
[331633013,1720594260270,-577.0,0.00013753,2]
[331633014,1720594260279,-14420.0,0.00013753,2]
[331633015,1720594260289,-38343.0,0.00013753,2]
[331633016,1720594260298,-150.0,0.00013754,2]
[331633017,1720594260307,-150.0,0.00013755,2]
[331633018,1720594260317,-150.0,0.00013757,2]
[331633019,1720594260327,-1500.0,0.00013759,2]
[331633020,1720594260336,-150.0,0.00013759,2]
[331633021,1720594260346,-370.98155159,0.00013759,2]
[331633022,1720594260355,-195.51702104,0.00013759,2]
[331633023,1720594260365,-500.0,0.00013759,2]
[331633024,1720594260375,-531.33097144,0.00013759,2]
[331633025,1720594260384,-500.0,0.00013759,2]
[331633026,1720594260394,-500.0,0.00013759,2]
[331633027,1720594260403,-582.18935,0.0001376,2]
[331633028,1720594260413,-220.00690201,0.00013764,2]
[331633029,1720594260422,-150.0,0.00013766,2]
[331633030,1720594260433,-150.0,0.00013768,2]
[331633031,1720594260443,-220.00690201,0.00013777,2]
[331633032,1720594260453,-631.72,0.0001378,2]
[331633033,1720594260463,-1373.52,0.0001378,2]
[331633034,1720594260472,-152609.0,0.00013781,2]
[331633035,1720594260482,-3501.0,0.00013781,2]
[331633036,1720594260491,-150.0,0.00013786,2]
[331633037,1720594260500,-150.0,0.00013789,2]
[331633038,1720594260510,-220.00690201,0.00013789,2]
[331633039,1720594260519,-150.0,0.0001379,2]
[331633040,1720594260528,-19699.41785785,0.0001379,2]
[331633041,1720594260538,-19699.41785783,0.0001379,2]
[331633042,1720594260547,-19699.41785783,0.0001379,2]
[331633043,1720594260556,-19699.41785783,0.0001379,2]
[331633044,1720594260566,-19699.41785783,0.0001379,2]
[331633045,1720594260575,-19699.41785783,0.0001379,2]
[331633046,1720594260585,-19699.41785783,0.0001379,2]
[331633047,1720594260594,-200.0,0.000138,5]
[331633048,1720594260604,-220.00690201,0.00013802,2]
[331633049,1720594260613,-780.41683337,0.00013803,2]
[331633050,1720594260622,-6002.86919367,0.00013803,2]
[331633051,1720594260632,-631.72,0.00013803,2]
[331633052,1720594260641,-1373.52,0.00013804,2]
[331633053,1720594260651,-13856.3975127,0.00013805,2]
[331633054,1720594260660,-183555.4259155,0.00013805,2]
[331633055,1720594260670,-12250.2228519,0.00013805,2]
[331633056,1720594260681,-150.0,0.00013806,2]
[331633057,1720594260694,-19699.41785783,0.00013807,2]
[331633058,1720594260704,-1328.54556321,0.00013807,2]
[331633059,1720594260713,-631.72,0.00013807,2]
[331633060,1720594260722,-631.72,0.00013807,2]
[331633061,1720594260732,-631.72,0.00013807,2]
[331633062,1720594260741,-1373.52,0.00013807,2]
[331633063,1720594260751,-1373.52,0.00013807,2]
[331633064,1720594260761,-1373.52,0.00013807,2]
[331633065,1720594260771,-1373.52,0.00013807,2]
[331633066,1720594260781,-500.0,0.00013808,2]
[331633067,1720594260792,-231.60784851,0.00013808,2]
[331633068,1720594260801,-651.3,0.00013808,2]
[331633069,1720594260811,-500.0,0.00013808,2]
[331633070,1720594260821,-500.0,0.00013808,2]
[331633071,1720594260830,-500.0,0.00013808,2]
[331633072,1720594260841,-508.3,0.00013808,2]
[331633073,1720594260851,-500.0,0.00013808,2]
[331633074,1720594260862,-500.0,0.00013808,2]
[331633075,1720594260871,-870.51,0.00013808,2]
[331633076,1720594260880,-1308.29,0.00013808,2]
[331633077,1720594260889,-500.0,0.00013808,2]
[331633078,1720594260899,-500.0,0.00013808,2]
[331633079,1720594260910,-1024.81,0.00013808,2]
[331633080,1720594260922,-500.0,0.00013808,2]
[331633081,1720594260935,-500.0,0.00013808,2]
[331633082,1720594260944,-1966.88,0.00013808,2]
[331633083,1720594260955,-619.29,0.00013808,2]
[331633084,1720594260964,-727.47,0.00013808,2]
[331633085,1720594260976,-560.85,0.00013808,2]
[331633086,1720594260987,-775.32,0.00013808,2]
[331633087,1720594260996,-500.0,0.00013808,2]
[331633088,1720594261007,-507.87,0.00013808,2]
[331633089,1720594261017,-563.4,0.00013808,2]
[331633090,1720594261026,-513.58,0.00013808,2]
[331633091,1720594261036,-797.04,0.00013808,2]
[331633092,1720594261045,-856.44,0.00013808,2]
[331633093,1720594261055,-1699.55,0.00013808,2]
[331633094,1720594261064,-736.23,0.00013808,2]
[331633095,1720594261073,-613.29,0.00013808,2]
[331633096,1720594261083,-500.0,0.00013808,2]
[331633097,1720594261092,-500.0,0.00013808,2]
[331633098,1720594261102,-500.0,0.00013808,2]
[331633099,1720594261111,-595.31,0.00013808,2]
[331633100,1720594261121,-500.0,0.00013808,2]
[331633101,1720594261131,-500.0,0.00013808,2]
[331633102,1720594261140,-816.49,0.00013808,2]
[331633103,1720594261150,-1204.81,0.00013808,2]
[331633104,1720594261159,-500.0,0.00013808,2]
[331633105,1720594261169,-500.0,0.00013808,2]
[331633106,1720594261179,-678.67,0.00013808,2]
[331633107,1720594261191,-826.96,0.00013808,2]
[331633108,1720594261200,-500.0,0.00013808,2]
[331633109,1720594261209,-500.0,0.00013808,2]
[331633110,1720594261218,-500.0,0.00013808,2]
[331633111,1720594261228,-500.0,0.00013808,2]
[331633112,1720594261237,-500.0,0.00013808,2]
[331633113,1720594261246,-800.49,0.00013808,2]
[331633114,1720594261256,-500.0,0.00013808,2]
[331633115,1720594261266,-500.0,0.00013808,2]
[331633116,1720594261275,-500.0,0.00013808,2]
[331633117,1720594261285,-500.0,0.00013808,2]
[331633118,1720594261295,-500.0,0.00013808,2]
[331633119,1720594261304,-689.52,0.00013808,2]
[331633120,1720594261314,-500.0,0.00013808,2]
[331633121,1720594261324,-507.63,0.00013808,2]
[331633122,1720594261333,-595.45,0.00013808,2]
[331633123,1720594261343,-922.94,0.00013808,2]
[331633124,1720594261352,-500.0,0.00013808,2]
[331633125,1720594261362,-500.0,0.00013808,2]
[331633126,1720594261371,-696.82,0.00013808,2]
[331633127,1720594261380,-544.33,0.00013808,2]
[331633128,1720594261390,-777.5,0.00013808,2]
[331633129,1720594261400,-1593.47,0.00013808,2]
[331633130,1720594261410,-778.13,0.00013808,2]
[331633131,1720594261421,-500.0,0.00013808,2]
[331633132,1720594261432,-500.0,0.00013808,2]
[331633133,1720594261441,-947.1,0.00013808,2]
[331633134,1720594261451,-500.93,0.00013808,2]
[331633135,1720594261460,-500.0,0.00013808,2]
[331633136,1720594261470,-500.0,0.00013808,2]
[331633137,1720594261479,-500.0,0.00013808,2]
[331633138,1720594261488,-641.3,0.00013808,2]
[331633139,1720594261498,-500.0,0.00013808,2]
[331633140,1720594261507,-690.67,0.00013808,2]
[331633141,1720594261517,-500.0,0.00013808,2]
[331633142,1720594261526,-500.0,0.00013808,2]
[331633143,1720594261535,-1009.19,0.00013808,2]
[331633144,1720594261545,-500.0,0.00013808,2]
[331633145,1720594261555,-977.2,0.00013808,2]
[331633146,1720594261564,-549.62,0.00013808,2]
[331633147,1720594261573,-500.0,0.00013808,2]
[331633148,1720594261582,-500.0,0.00013808,2]
[331633149,1720594261592,-500.0,0.00013808,2]
[331633150,1720594261602,-500.0,0.00013808,2]
[331633151,1720594261612,-500.0,0.00013808,2]
[331633152,1720594261621,-500.0,0.00013808,2]
[331633153,1720594261631,-914.65,0.00013808,2]
[331633154,1720594261640,-1675.91,0.00013808,2]
[331633155,1720594261650,-334.92934636,0.00013808,2]
[331633156,1720594261659,-500.0,0.00013808,2]
[331633157,1720594261668,-500.0,0.00013808,2]
[331633158,1720594261678,-560.97,0.00013808,2]
[331633159,1720594261688,-738.59,0.00013808,2]
[331633160,1720594261699,-527.97,0.00013808,2]
[331633161,1720594261709,-500.0,0.00013808,2]
[331633162,1720594261719,-500.0,0.00013808,2]
[331633163,1720594261728,-635.86498216,0.00013808,2]
[331633164,1720594261738,-500.0,0.00013808,2]
[331633165,1720594261747,-737.47,0.00013808,2]
[331633166,1720594261756,-500.0,0.00013808,2]
[331633167,1720594261766,-500.0,0.00013808,2]
[331633168,1720594261776,-500.0,0.00013808,2]
[331633169,1720594261787,-500.0,0.00013808,2]
[331633170,1720594261796,-500.0,0.00013808,2]
[331633171,1720594261807,-1053.37,0.00013808,2]
[331633172,1720594261816,-500.0,0.00013808,2]
[331633173,1720594261827,-500.0,0.00013808,2]
[331633174,1720594261838,-668.88,0.00013808,2]
[331633175,1720594261848,-500.0,0.00013808,2]
[331633176,1720594261858,-768.49,0.00013808,2]
[331633177,1720594261869,-500.0,0.00013808,2]
[331633178,1720594261879,-500.0,0.00013808,2]
[331633179,1720594261889,-805.84,0.00013808,2]
[331633180,1720594261901,-1775.51,0.00013808,2]
[331633181,1720594261910,-500.0,0.00013808,2]
[331633182,1720594261921,-517.22,0.00013808,2]
[331633183,1720594261931,-731.63,0.00013808,2]
[331633184,1720594261941,-292.11061565,0.00013808,2]
[331633185,1720594261951,-1892.32,0.00013808,2]
[331633186,1720594261961,-513.26,0.00013808,2]
[331633187,1720594261971,-662.96,0.00013808,2]
[331633188,1720594261982,-500.0,0.00013808,2]
[331633189,1720594261993,-500.0,0.00013808,2]
[331633190,1720594262002,-500.0,0.00013808,2]
[331633191,1720594262013,-500.0,0.00013808,2]
[331633192,1720594262022,-500.0,0.00013808,2]
[331633193,1720594262031,-1345.54,0.00013808,2]
[331633194,1720594262040,-1153.52,0.00013808,2]
[331633195,1720594262050,-610.65,0.00013808,2]
[331633196,1720594262059,-1999.38,0.00013808,2]
[331633197,1720594262069,-500.0,0.00013808,2]
[331633198,1720594262079,-500.0,0.00013808,2]
[331633199,1720594262088,-500.0,0.00013808,2]
[331633200,1720594262098,-500.0,0.00013808,2]
[331633201,1720594262107,-500.0,0.00013808,2]
[331633202,1720594262116,-595.69,0.00013808,2]
[331633203,1720594262125,-500.0,0.00013808,2]
[331633204,1720594262134,-1502.24,0.00013808,2]
[331633205,1720594262144,-500.0,0.00013808,2]
[331633206,1720594262154,-500.0,0.00013808,2]
[331633207,1720594262165,-500.0,0.00013808,2]
[331633208,1720594262175,-996.07,0.00013808,2]
[331633209,1720594262185,-500.0,0.00013808,2]
[331633210,1720594262195,-500.0,0.00013808,2]
[331633211,1720594262204,-500.0,0.00013808,2]
[331633212,1720594262214,-1290.95,0.00013808,2]
[331633213,1720594262223,-500.0,0.00013808,2]
[331633214,1720594262233,-796.63,0.00013808,2]
[331633215,1720594262242,-737.55,0.00013808,2]
[331633216,1720594262252,-1184.38,0.00013808,2]
[331633217,1720594262262,-500.0,0.00013808,2]
[331633218,1720594262272,-697.27,0.00013808,2]
[331633219,1720594262283,-512.57,0.00013808,2]
[331633220,1720594262292,-500.0,0.00013808,2]
[331633221,1720594262302,-823.5,0.00013808,2]
[331633222,1720594262312,-533.11,0.00013808,2]
[331633223,1720594262322,-500.0,0.00013808,2]
[331633224,1720594262331,-377.28101204,0.00013808,2]
[331633225,1720594262341,-1129.72,0.00013808,2]
[331633226,1720594262350,-500.0,0.00013808,2]
[331633227,1720594262360,-500.0,0.00013808,2]
[331633228,1720594262369,-500.0,0.00013808,2]
[331633229,1720594262378,-500.0,0.00013808,2]
[331633230,1720594262388,-1082.75,0.00013808,2]
[331633231,1720594262397,-575.19,0.00013808,2]
[331633232,1720594262406,-500.0,0.00013808,2]
[331633233,1720594262416,-562.61,0.00013808,2]
[331633234,1720594262425,-231.99678539,0.00013808,2]
[331633235,1720594262436,-645.385632,0.00013808,2]
[331633236,1720594262445,-587.8,0.00013808,2]
[331633237,1720594262455,-500.0,0.00013808,2]
[331633238,1720594262464,-500.0,0.00013808,2]
[331633239,1720594262474,-656.9,0.00013808,2]
[331633240,1720594262484,-1288.81,0.00013808,2]
[331633241,1720594262493,-500.0,0.00013808,2]
[331633242,1720594262502,-500.0,0.00013808,2]
[331633243,1720594262512,-500.0,0.00013808,2]
[331633244,1720594262521,-1038.53,0.00013808,2]
[331633245,1720594262530,-887.82,0.00013808,2]
[331633246,1720594262539,-382.82825422,0.00013808,2]
[331633247,1720594262575,-505.0533972,0.00013808,2]
[331633248,1720594262621,-434.84834858,0.00013808,2]
[331633249,1720594262631,-500.0,0.00013808,2]
[331633250,1720594262641,-175.22011022,0.00013808,2]
[331633251,1720594262651,-643.45,0.00013808,2]
[331633252,1720594262660,-500.0,0.00013808,2]
[331633253,1720594262670,-500.0,0.00013808,2]
[331633254,1720594262681,-500.0,0.00013808,2]
[331633255,1720594262691,-500.0,0.00013808,2]
[331633256,1720594262700,-711.12,0.00013808,2]
[331633257,1720594262709,-1542.33,0.00013808,2]
[331633258,1720594262719,-919.02,0.00013808,2]
[331633259,1720594262728,-1080.28,0.00013808,2]
[331633260,1720594262737,-500.0,0.00013808,2]
[331633261,1720594262747,-195.58606565,0.00013808,2]
[331633262,1720594262756,-500.0,0.00013808,2]
[331633263,1720594262766,-1156.69,0.00013808,2]
[331633264,1720594262775,-500.0,0.00013808,2]
[331633265,1720594262785,-1145.7,0.00013808,2]
[331633266,1720594262794,-500.0,0.00013808,2]
[331633267,1720594262804,-716.99,0.00013808,2]
[331633268,1720594262813,-500.0,0.00013808,2]
[331633269,1720594262823,-729.09,0.00013808,2]
[331633270,1720594262832,-530.03,0.00013808,2]
[331633271,1720594262841,-500.0,0.00013808,2]
[331633272,1720594262851,-500.0,0.00013808,2]
[331633273,1720594262861,-500.0,0.00013808,2]
[331633274,1720594262871,-519.9,0.00013808,2]
[331633275,1720594262880,-500.0,0.00013808,2]
[331633276,1720594262889,-500.0,0.00013808,2]
[331633277,1720594262899,-705.03,0.00013808,2]
[331633278,1720594262908,-1142.86,0.00013808,2]
[331633279,1720594262917,-500.0,0.00013808,2]
[331633280,1720594262926,-500.0,0.00013808,2]
[331633281,1720594262937,-1369.32,0.00013808,2]
[331633282,1720594262947,-500.0,0.00013808,2]
[331633283,1720594262957,-967.24,0.00013808,2]
[331633284,1720594262967,-936.06,0.00013808,2]
[331633285,1720594262976,-607.3,0.00013808,2]
[331633286,1720594262985,-938.94,0.00013808,2]
[331633287,1720594262994,-500.0,0.00013808,2]
[331633288,1720594263004,-500.0,0.00013808,2]
[331633289,1720594263013,-500.0,0.00013808,2]
[331633290,1720594263023,-785.8,0.00013808,2]
[331633291,1720594263032,-1068.85,0.00013808,2]
[331633292,1720594263042,-1263.04,0.00013808,2]
[331633293,1720594263051,-137.42793452,0.00013808,2]
[331633294,1720594264515,-361.09571411,0.00013698,2]
[331633295,1720594264639,-138.90428589,0.00013698,2]
[331633296,1720594264648,-500.0,0.00013753,2]
[331633297,1720594264658,-410.73463681,0.00013808,2]
[331633298,1720594264786,-475.95742867,0.00013808,2]
[331633299,1720594264796,-500.0,0.00013808,2]
[331633300,1720594264806,-617.93,0.00013808,2]
[331633301,1720594264815,-1679.39,0.00013808,2]
[331633302,1720594264824,-732.39,0.00013808,2]
[331633303,1720594264834,-500.0,0.00013808,2]
[331633304,1720594264843,-500.0,0.00013808,2]
[331633305,1720594264852,-1608.12,0.00013808,2]
[331633306,1720594264862,-541.62,0.00013808,2]
[331633307,1720594264871,-1182.96,0.00013808,2]
[331633308,1720594264881,-1017.25,0.00013808,2]
[331633309,1720594264891,-1643.56,0.00013808,2]
[331633310,1720594264900,-500.0,0.00013808,2]
[331633311,1720594264909,-1542.5,0.00013808,2]
[331633312,1720594264919,-709.21,0.00013808,2]
[331633313,1720594264928,-2150.36,0.00013808,2]
[331633314,1720594264940,-500.0,0.00013808,2]
[331633315,1720594264950,-521.66,0.00013808,2]
[331633316,1720594264959,-1382.69,0.00013808,2]
[331633317,1720594264970,-1017.25,0.00013808,2]
[331633318,1720594264980,-500.0,0.00013808,2]
[331633319,1720594264990,-278.02016145,0.00013808,2]
[331633320,1720594265000,-527.83,0.00013808,2]
[331633321,1720594265009,-1179.86,0.00013808,2]
[331633322,1720594265018,-1420.17,0.00013808,2]
[331633323,1720594265027,-500.0,0.00013808,2]
[331633324,1720594265037,-576.06,0.00013808,2]
[331633325,1720594265047,-2271.04,0.00013808,2]
[331633326,1720594265056,-500.0,0.00013808,2]
[331633327,1720594265066,-556.63,0.00013808,2]
[331633328,1720594265075,-500.0,0.00013808,2]
[331633329,1720594265084,-555.74,0.00013808,2]
[331633330,1720594265094,-503.85,0.00013808,2]
[331633331,1720594265103,-633.42,0.00013808,2]
[331633332,1720594265112,-1513.62,0.00013808,2]
[331633333,1720594265121,-1000.0,0.00013808,2]
[331633334,1720594265130,-1640.61,0.00013808,2]
[331633335,1720594265140,-500.0,0.00013808,2]
[331633336,1720594265149,-500.0,0.00013808,2]
[331633337,1720594265158,-500.0,0.00013808,2]
[331633338,1720594265167,-1440.57,0.00013808,2]
[331633339,1720594265176,-997.28,0.00013808,2]
[331633340,1720594265186,-582.63,0.00013808,2]
[331633341,1720594265195,-564.02,0.00013808,2]
[331633342,1720594265204,-1485.38,0.00013808,2]
[331633343,1720594265214,-500.0,0.00013808,2]
[331633344,1720594265222,-1255.76,0.00013808,2]
[331633345,1720594265231,-500.0,0.00013808,2]
[331633346,1720594265242,-500.0,0.00013808,2]
[331633347,1720594265251,-613.45,0.00013808,2]
[331633348,1720594265260,-500.0,0.00013808,2]
[331633349,1720594265269,-500.0,0.00013808,2]
[331633350,1720594265279,-879.12,0.00013808,2]
[331633351,1720594265288,-500.0,0.00013808,2]
[331633352,1720594265298,-950.65,0.00013808,2]
[331633353,1720594265307,-500.0,0.00013808,2]
[331633354,1720594265317,-1429.85,0.00013808,2]
[331633355,1720594265327,-500.0,0.00013808,2]
[331633356,1720594265336,-500.0,0.00013808,2]
[331633357,1720594265345,-500.0,0.00013808,2]
[331633358,1720594265355,-697.89,0.00013808,2]
[331633359,1720594265364,-500.0,0.00013808,2]
[331633360,1720594265373,-500.0,0.00013808,2]
[331633361,1720594265383,-500.0,0.00013808,2]
[331633362,1720594265393,-1637.45,0.00013808,2]
[331633363,1720594265402,-1300.49,0.00013808,2]
[331633364,1720594265412,-1057.84,0.00013808,2]
[331633365,1720594265421,-1546.22,0.00013808,2]
[331633366,1720594265431,-686.73,0.00013808,2]
[331633367,1720594265440,-500.0,0.00013808,2]
[331633368,1720594265450,-710.3,0.00013808,2]
[331633369,1720594265459,-714.86,0.00013808,2]
[331633370,1720594265469,-1038.82,0.00013808,2]
[331633371,1720594265479,-2175.42,0.00013808,2]
[331633372,1720594265488,-623.25,0.00013808,2]
[331633373,1720594265498,-522.01,0.00013808,2]
[331633374,1720594265507,-1351.97,0.00013808,2]
[331633375,1720594265516,-500.0,0.00013808,2]
[331633376,1720594265526,-500.0,0.00013808,2]
[331633377,1720594265535,-523.74,0.00013808,2]
[331633378,1720594265544,-500.0,0.00013808,2]
[331633379,1720594265553,-500.0,0.00013808,2]
[331633380,1720594265563,-500.0,0.00013808,2]
[331633381,1720594265572,-544.72,0.00013808,2]
[331633382,1720594265583,-500.0,0.00013808,2]
[331633383,1720594265593,-1257.65,0.00013808,2]
[331633384,1720594265603,-1125.44,0.00013808,2]
[331633385,1720594265613,-500.0,0.00013808,2]
[331633386,1720594265624,-1026.48,0.00013808,2]
[331633387,1720594265634,-500.0,0.00013808,2]
[331633388,1720594265644,-676.29,0.00013808,2]
[331633389,1720594265653,-799.49,0.00013808,2]
[331633390,1720594265663,-2179.88,0.00013808,2]
[331633391,1720594265672,-500.0,0.00013808,2]
[331633392,1720594265683,-500.0,0.00013808,2]
[331633393,1720594265695,-634.46,0.00013808,2]
[331633394,1720594265704,-500.0,0.00013808,2]
[331633395,1720594265714,-816.98,0.00013808,2]
[331633396,1720594265723,-1455.8,0.00013808,2]
[331633397,1720594265732,-991.42,0.00013808,2]
[331633398,1720594265741,-569.51,0.00013808,2]
[331633399,1720594265750,-1162.99,0.00013808,2]
[331633400,1720594265760,-500.0,0.00013808,2]
[331633401,1720594265769,-500.0,0.00013808,2]
[331633402,1720594265778,-1163.03,0.00013808,2]
[331633403,1720594265788,-500.0,0.00013808,2]
[331633404,1720594265797,-500.0,0.00013808,2]
[331633405,1720594265807,-2686.32,0.00013808,2]
[331633406,1720594265816,-525.95,0.00013808,2]
[331633407,1720594265825,-590.6,0.00013808,2]
[331633408,1720594265835,-1631.02,0.00013808,2]
[331633409,1720594265844,-1095.69,0.00013808,2]
[331633410,1720594265853,-500.0,0.00013808,2]
[331633411,1720594265863,-500.0,0.00013808,2]
[331633412,1720594265872,-1622.05,0.00013808,2]
[331633413,1720594265882,-1735.43,0.00013808,2]
[331633414,1720594265895,-500.0,0.00013808,2]
[331633415,1720594265904,-1194.27,0.00013808,2]
[331633416,1720594265913,-500.0,0.00013808,2]
[331633417,1720594265923,-2613.06,0.00013808,2]
[331633418,1720594265933,-500.0,0.00013808,2]
[331633419,1720594265944,-500.0,0.00013808,2]
[331633420,1720594265954,-906.86,0.00013808,2]
[331633421,1720594265964,-678.18,0.00013808,2]
[331633422,1720594265974,-1952.38,0.00013808,2]
[331633423,1720594265984,-500.0,0.00013808,2]
[331633424,1720594265994,-500.0,0.00013808,2]
[331633425,1720594266005,-500.0,0.00013808,2]
[331633426,1720594266015,-500.0,0.00013808,2]
[331633427,1720594266024,-811.16,0.00013808,2]
[331633428,1720594266035,-939.0,0.00013808,2]
[331633429,1720594266044,-1072.15,0.00013808,2]
[331633430,1720594266056,-500.0,0.00013808,2]
[331633431,1720594266066,-1678.42,0.00013808,2]
[331633432,1720594266076,-500.0,0.00013808,2]
[331633433,1720594266086,-511.21,0.00013808,2]
[331633434,1720594266097,-500.0,0.00013808,2]
[331633435,1720594266107,-500.0,0.00013808,2]
[331633436,1720594266116,-506.06,0.00013808,2]
[331633437,1720594266127,-500.0,0.00013808,2]
[331633438,1720594266136,-1221.3,0.00013808,2]
[331633439,1720594266147,-830.61,0.00013808,2]
[331633440,1720594266158,-500.0,0.00013808,2]
[331633441,1720594266170,-568.98,0.00013808,2]
[331633442,1720594266182,-500.0,0.00013808,2]
[331633443,1720594266192,-579.23,0.00013808,2]
[331633444,1720594266202,-1798.51,0.00013808,2]
[331633445,1720594266212,-1171.97,0.00013808,2]
[331633446,1720594266221,-644.8,0.00013808,2]
[331633447,1720594266232,-500.0,0.00013808,2]
[331633448,1720594266243,-1102.41,0.00013808,2]
[331633449,1720594266253,-500.0,0.00013808,2]
[331633450,1720594266262,-500.0,0.00013808,2]
[331633451,1720594266271,-1065.22,0.00013808,2]
[331633452,1720594266281,-792.64,0.00013808,2]
[331633453,1720594266290,-500.0,0.00013808,2]
[331633454,1720594266300,-500.0,0.00013808,2]
[331633455,1720594266309,-500.0,0.00013808,2]
[331633456,1720594266320,-500.0,0.00013808,2]
[331633457,1720594266330,-734.69,0.00013808,2]
[331633458,1720594266339,-500.0,0.00013808,2]
[331633459,1720594266349,-1504.52,0.00013808,2]
[331633460,1720594266358,-500.0,0.00013808,2]
[331633461,1720594266368,-500.0,0.00013808,2]
[331633462,1720594266377,-1350.39,0.00013808,2]
[331633463,1720594266386,-500.0,0.00013808,2]
[331633464,1720594266396,-2066.31,0.00013808,2]
[331633465,1720594266406,-739.23,0.00013808,2]
[331633466,1720594266415,-500.0,0.00013808,2]
[331633467,1720594266424,-291.47583836,0.00013808,2]
[331633468,1720594266433,-508.64,0.00013808,2]
[331633469,1720594266443,-500.0,0.00013808,2]
[331633470,1720594266452,-500.0,0.00013808,2]
[331633471,1720594266462,-1781.76,0.00013808,2]